{"text_format":"1","workbook":"xlsx","n_sheets":1,"sheets":["Лист2"],"not_rendered":{"charts":0,"images":1,"macros":1,"external_links":0,"defined_names":0,"comments":0,"pivot_tables":0},"unopened":[],"bounds":{"document_bytes":16777216,"sheet_cells":100000,"rows_first":2000,"rows_last":500,"rows_between":2000,"halvings":0,"cell_chars":16384,"cell_head_chars":4096},"cells_cut":0,"cells_raw":0,"read":"whole","date_system":"1900"}

{"sheet":"Лист2","index":0,"n_rows":223,"n_cols":29,"rows_kept":223,"cut":false,"hidden":false,"merged":[]}
["начать со строки",21]
["номер протокола","дата протокола","дата заседания","место проведения","председатель вк","секретарь вк","член вк 1","член вк 2","член вк 3","член вк 4","член вк 5","фио пациента","дата рождения пациента","месяц рождения пациента","год рождения пациента","мкб 10","мнн","за","против","воздержался","повтор МНН","повтор МНН 2",{"$f":"E2","v":"председатель вк"},{"$f":"F2","v":"секретарь вк"},"член вк 1","член вк 2","член вк 3","член вк 4","член вк 5"]
["&SN1001","&SN1002","&SN1003","&SN1004","&SN1005","&SN1006","&SN1007","&SN1008","&SN1009","&SN1010","&SN1011","&SN1012","&SN1013","&SN1014","&SN1015","&SN1016","&SN1017","&SN1018","&SN1019","&SN1020","&SN1021","&SN1022","&SN1023","&SN1024","&SN1025","&SN1026","&SN1027","&SN1028","&SN1029"]
[33,"2023-11-30","2023-11-30","г. Москва, ул. Московская здание 3","Иванов И.И.","Петрова Н.Н.","Сидоров 1","Сидоров 2","Сидоров 3","Сидоров 4",null,"Матвеев И.И.",1,"января",1976,"ОРВИ",{"$f":"VLOOKUP(Q$2,#REF!,2,FALSE)","v":{"$error":"#REF!"}},"да",{"$f":"VLOOKUP(S$2,#REF!,2,FALSE)","v":{"$error":"#REF!"}},{"$f":"VLOOKUP(T$2,#REF!,2,FALSE)","v":{"$error":"#REF!"}},{"$f":"IF(Q4=0,\"\",Q4)","v":{"$error":"#REF!"}},{"$f":"IF(Q4=0,\"\",Q4)","v":{"$error":"#REF!"}},{"$f":"IF(E4=0,\"\",E4)","v":"Иванов И.И."},{"$f":"IF(F4=0,\"\",F4)","v":"Петрова Н.Н."},{"$f":"IF(G4=0,\"\",G4)","v":"Сидоров 1"},{"$f":"IF(H4=0,\"\",H4)","v":"Сидоров 2"},{"$f":"IF(I4=0,\"\",I4)","v":"Сидоров 3"},{"$f":"IF(J4=0,\"\",J4)","v":"Сидоров 4"},{"$f":"IF(K4=0,\"\",K4)","v":""}]
[34,"2023-11-30","2023-11-30","г. Москва, ул. Московская здание 3","Иванов И.И.","Петрова Н.Н.","Сидоров 1","Сидоров 2","Сидоров 3","Сидоров 4",null,"оарворор",1,"января",1976,"ОРВИ",{"$f":"VLOOKUP(Q$2,#REF!,2,FALSE)","v":{"$error":"#REF!"}},"да",{"$f":"VLOOKUP(S$2,#REF!,2,FALSE)","v":{"$error":"#REF!"}},{"$f":"VLOOKUP(T$2,#REF!,2,FALSE)","v":{"$error":"#REF!"}},{"$error":"#REF!"},{"$error":"#REF!"},"Иванов И.И.","Петрова Н.Н.","Сидоров 1","Сидоров 2","Сидоров 3","Сидоров 4",""]
[35,"2023-11-30","2023-11-30","г. Москва, ул. Московская здание 3","Иванов И.И.","Петрова Н.Н.","Сидоров 1","Сидоров 2","Сидоров 3","Сидоров 4",null,"аорвоарво",1,"января",1976,"ОРВИ",{"$f":"VLOOKUP(Q$2,#REF!,2,FALSE)","v":{"$error":"#REF!"}},"да",{"$f":"VLOOKUP(S$2,#REF!,2,FALSE)","v":{"$error":"#REF!"}},{"$f":"VLOOKUP(T$2,#REF!,2,FALSE)","v":{"$error":"#REF!"}},{"$error":"#REF!"},{"$error":"#REF!"},"Иванов И.И.","Петрова Н.Н.","Сидоров 1","Сидоров 2","Сидоров 3","Сидоров 4",""]
[36,"2023-11-30","2023-11-30","г. Москва, ул. Московская здание 4","Иванов И.И.","Петрова Н.Н.","Сидоров 1","Сидоров 2","Сидоров 3","Сидоров 4",null,"аорвоарво",2,"января",1977,"ОРВИ",{"$f":"VLOOKUP(Q$2,#REF!,2,FALSE)","v":{"$error":"#REF!"}},"да",{"$f":"VLOOKUP(S$2,#REF!,2,FALSE)","v":{"$error":"#REF!"}},{"$f":"VLOOKUP(T$2,#REF!,2,FALSE)","v":{"$error":"#REF!"}},{"$error":"#REF!"},{"$error":"#REF!"},"Иванов И.И.","Петрова Н.Н.","Сидоров 1","Сидоров 2","Сидоров 3","Сидоров 4",""]
[37,"2023-11-30","2023-11-30","г. Москва, ул. Московская здание 5","Иванов И.И.","Петрова Н.Н.","Сидоров 1","Сидоров 2","Сидоров 3","Сидоров 4",null,"аорвоарво",3,"января",1978,"ОРВИ",{"$f":"VLOOKUP(Q$2,#REF!,2,FALSE)","v":{"$error":"#REF!"}},"да",{"$f":"VLOOKUP(S$2,#REF!,2,FALSE)","v":{"$error":"#REF!"}},{"$f":"VLOOKUP(T$2,#REF!,2,FALSE)","v":{"$error":"#REF!"}},{"$error":"#REF!"},{"$error":"#REF!"},"Иванов И.И.","Петрова Н.Н.","Сидоров 1","Сидоров 2","Сидоров 3","Сидоров 4",""]
[38,"2023-11-30","2023-11-30","г. Москва, ул. Московская здание 6","Иванов И.И.","Петрова Н.Н.","Сидоров 1","Сидоров 2","Сидоров 3","Сидоров 4",null,"аорвоарво",4,"января",1979,"ОРВИ",{"$f":"VLOOKUP(Q$2,#REF!,2,FALSE)","v":{"$error":"#REF!"}},"да",{"$f":"VLOOKUP(S$2,#REF!,2,FALSE)","v":{"$error":"#REF!"}},{"$f":"VLOOKUP(T$2,#REF!,2,FALSE)","v":{"$error":"#REF!"}},{"$error":"#REF!"},{"$error":"#REF!"},"Иванов И.И.","Петрова Н.Н.","Сидоров 1","Сидоров 2","Сидоров 3","Сидоров 4",""]
[39,"2023-11-30","2023-11-30","г. Москва, ул. Московская здание 7","Иванов И.И.","Петрова Н.Н.","Сидоров 1","Сидоров 2","Сидоров 3","Сидоров 4",null,"аорвоарво",5,"января",1980,"ОРВИ",{"$f":"VLOOKUP(Q$2,#REF!,2,FALSE)","v":{"$error":"#REF!"}},"да",{"$f":"VLOOKUP(S$2,#REF!,2,FALSE)","v":{"$error":"#REF!"}},{"$f":"VLOOKUP(T$2,#REF!,2,FALSE)","v":{"$error":"#REF!"}},{"$error":"#REF!"},{"$error":"#REF!"},"Иванов И.И.","Петрова Н.Н.","Сидоров 1","Сидоров 2","Сидоров 3","Сидоров 4",""]
[40,"2023-11-30","2023-11-30","г. Москва, ул. Московская здание 8","Иванов И.И.","Петрова Н.Н.","Сидоров 1","Сидоров 2","Сидоров 3","Сидоров 4",null,"аорвоарво",6,"января",1981,"ОРВИ",{"$f":"VLOOKUP(Q$2,#REF!,2,FALSE)","v":{"$error":"#REF!"}},"да",{"$f":"VLOOKUP(S$2,#REF!,2,FALSE)","v":{"$error":"#REF!"}},{"$f":"VLOOKUP(T$2,#REF!,2,FALSE)","v":{"$error":"#REF!"}},{"$error":"#REF!"},{"$error":"#REF!"},"Иванов И.И.","Петрова Н.Н.","Сидоров 1","Сидоров 2","Сидоров 3","Сидоров 4",""]
[41,"2023-11-30","2023-11-30","г. Москва, ул. Московская здание 9","Иванов И.И.","Петрова Н.Н.","Сидоров 1","Сидоров 2","Сидоров 3","Сидоров 4",null,"аорвоарво",7,"января",1982,"ОРВИ",{"$f":"VLOOKUP(Q$2,#REF!,2,FALSE)","v":{"$error":"#REF!"}},"да",{"$f":"VLOOKUP(S$2,#REF!,2,FALSE)","v":{"$error":"#REF!"}},{"$f":"VLOOKUP(T$2,#REF!,2,FALSE)","v":{"$error":"#REF!"}},{"$error":"#REF!"},{"$error":"#REF!"},"Иванов И.И.","Петрова Н.Н.","Сидоров 1","Сидоров 2","Сидоров 3","Сидоров 4",""]
[42,"2023-11-30","2023-11-30","г. Москва, ул. Московская здание 10","Иванов И.И.","Петрова Н.Н.","Сидоров 1","Сидоров 2","Сидоров 3","Сидоров 4",null,"аорвоарво",8,"января",1983,"ОРВИ",{"$f":"VLOOKUP(Q$2,#REF!,2,FALSE)","v":{"$error":"#REF!"}},"да",{"$f":"VLOOKUP(S$2,#REF!,2,FALSE)","v":{"$error":"#REF!"}},{"$f":"VLOOKUP(T$2,#REF!,2,FALSE)","v":{"$error":"#REF!"}},{"$error":"#REF!"},{"$error":"#REF!"},"Иванов И.И.","Петрова Н.Н.","Сидоров 1","Сидоров 2","Сидоров 3","Сидоров 4",""]
[43,"2023-11-30","2023-11-30","г. Москва, ул. Московская здание 11","Иванов И.И.","Петрова Н.Н.","Сидоров 1","Сидоров 2","Сидоров 3","Сидоров 4",null,"аорвоарво",9,"января",1984,"ОРВИ",{"$f":"VLOOKUP(Q$2,#REF!,2,FALSE)","v":{"$error":"#REF!"}},"да",{"$f":"VLOOKUP(S$2,#REF!,2,FALSE)","v":{"$error":"#REF!"}},{"$f":"VLOOKUP(T$2,#REF!,2,FALSE)","v":{"$error":"#REF!"}},{"$error":"#REF!"},{"$error":"#REF!"},"Иванов И.И.","Петрова Н.Н.","Сидоров 1","Сидоров 2","Сидоров 3","Сидоров 4",""]
[44,"2023-11-30","2023-11-30","г. Москва, ул. Московская здание 12","Иванов И.И.","Петрова Н.Н.","Сидоров 1","Сидоров 2","Сидоров 3","Сидоров 4",null,"аорвоарво",10,"января",1985,"ОРВИ",{"$f":"VLOOKUP(Q$2,#REF!,2,FALSE)","v":{"$error":"#REF!"}},"да",{"$f":"VLOOKUP(S$2,#REF!,2,FALSE)","v":{"$error":"#REF!"}},{"$f":"VLOOKUP(T$2,#REF!,2,FALSE)","v":{"$error":"#REF!"}},{"$error":"#REF!"},{"$error":"#REF!"},"Иванов И.И.","Петрова Н.Н.","Сидоров 1","Сидоров 2","Сидоров 3","Сидоров 4",""]
[45,"2023-11-30","2023-11-30","г. Москва, ул. Московская здание 13","Иванов И.И.","Петрова Н.Н.","Сидоров 1","Сидоров 2","Сидоров 3","Сидоров 4","Сидоров 5","аорвоарво",11,"января",1986,"ОРВИ",{"$f":"VLOOKUP(Q$2,#REF!,2,FALSE)","v":{"$error":"#REF!"}},"да",{"$f":"VLOOKUP(S$2,#REF!,2,FALSE)","v":{"$error":"#REF!"}},{"$f":"VLOOKUP(T$2,#REF!,2,FALSE)","v":{"$error":"#REF!"}},{"$error":"#REF!"},{"$error":"#REF!"},"Иванов И.И.","Петрова Н.Н.","Сидоров 1","Сидоров 2","Сидоров 3","Сидоров 4","Сидоров 5"]
[46,"2023-11-30","2023-11-30","г. Москва, ул. Московская здание 14","Иванов И.И.","Петрова Н.Н.","Сидоров 1","Сидоров 2","Сидоров 3","Сидоров 4","Сидоров 5","аорвоарво",12,"января",1987,"ОРВИ",{"$f":"VLOOKUP(Q$2,#REF!,2,FALSE)","v":{"$error":"#REF!"}},"да",{"$f":"VLOOKUP(S$2,#REF!,2,FALSE)","v":{"$error":"#REF!"}},{"$f":"VLOOKUP(T$2,#REF!,2,FALSE)","v":{"$error":"#REF!"}},{"$error":"#REF!"},{"$error":"#REF!"},"Иванов И.И.","Петрова Н.Н.","Сидоров 1","Сидоров 2","Сидоров 3","Сидоров 4","Сидоров 5"]
[47,"2023-11-30","2023-11-30","г. Москва, ул. Московская здание 15","Иванов И.И.","Петрова Н.Н.","Сидоров 1","Сидоров 2","Сидоров 3","Сидоров 4","Сидоров 5","аорвоарво",13,"января",1988,"ОРВИ",{"$f":"VLOOKUP(Q$2,#REF!,2,FALSE)","v":{"$error":"#REF!"}},"да",{"$f":"VLOOKUP(S$2,#REF!,2,FALSE)","v":{"$error":"#REF!"}},{"$f":"VLOOKUP(T$2,#REF!,2,FALSE)","v":{"$error":"#REF!"}},{"$error":"#REF!"},{"$error":"#REF!"},"Иванов И.И.","Петрова Н.Н.","Сидоров 1","Сидоров 2","Сидоров 3","Сидоров 4","Сидоров 5"]
[48,"2023-11-30","2023-11-30","г. Москва, ул. Московская здание 16","Иванов И.И.","Петрова Н.Н.","Сидоров 1","Сидоров 2","Сидоров 3","Сидоров 4","Сидоров 5","аорвоарво",14,"января",1989,"ОРВИ",{"$f":"VLOOKUP(Q$2,#REF!,2,FALSE)","v":{"$error":"#REF!"}},"да",{"$f":"VLOOKUP(S$2,#REF!,2,FALSE)","v":{"$error":"#REF!"}},{"$f":"VLOOKUP(T$2,#REF!,2,FALSE)","v":{"$error":"#REF!"}},{"$error":"#REF!"},{"$error":"#REF!"},"Иванов И.И.","Петрова Н.Н.","Сидоров 1","Сидоров 2","Сидоров 3","Сидоров 4","Сидоров 5"]
[49,"2023-11-30","2023-11-30","г. Москва, ул. Московская здание 17","Иванов И.И.","Петрова Н.Н.","Сидоров 1","Сидоров 2","Сидоров 3","Сидоров 4","Сидоров 5","аорвоарво",15,"января",1990,"ОРВИ",{"$f":"VLOOKUP(Q$2,#REF!,2,FALSE)","v":{"$error":"#REF!"}},"да",{"$f":"VLOOKUP(S$2,#REF!,2,FALSE)","v":{"$error":"#REF!"}},{"$f":"VLOOKUP(T$2,#REF!,2,FALSE)","v":{"$error":"#REF!"}},{"$error":"#REF!"},{"$error":"#REF!"},"Иванов И.И.","Петрова Н.Н.","Сидоров 1","Сидоров 2","Сидоров 3","Сидоров 4","Сидоров 5"]
[666,"2023-11-30","2023-11-30","г. Москва, ул. Московская здание 18","Иванов И.И.","Петрова Н.Н.","Сидоров 1","Сидоров 2","Сидоров 3","Сидоров 4","Сидоров 5","аорвоарво","2023-01-16",null,null,"ОРВИ",{"$f":"VLOOKUP(Q$2,#REF!,2,FALSE)","v":{"$error":"#REF!"}},"да",{"$f":"VLOOKUP(S$2,#REF!,2,FALSE)","v":{"$error":"#REF!"}},{"$f":"VLOOKUP(T$2,#REF!,2,FALSE)","v":{"$error":"#REF!"}},{"$f":"IF(Q21=0,\"\",Q21)","v":{"$error":"#REF!"}},{"$f":"IF(Q21=0,\"\",Q21)","v":{"$error":"#REF!"}},{"$f":"IF(E21=0,\"\",E21)","v":"Иванов И.И."},"Петрова Н.Н.","Сидоров 1","Сидоров 2","Сидоров 3","Сидоров 4","Сидоров 5"]
[null,null,null,null,null,null,null,null,null,null,null,null,"2023-02-02",null,null,null,null,null,null,null,{"$f":"IF(Q22=0,\"\",Q22)","v":""},{"$f":"IF(Q22=0,\"\",Q22)","v":""},{"$f":"IF(E22=0,\"\",E22)","v":""},{"$f":"IF(F22=0,\"\",F22)","v":""},{"$f":"IF(G22=0,\"\",G22)","v":""},{"$f":"IF(H22=0,\"\",H22)","v":""},{"$f":"IF(I22=0,\"\",I22)","v":""},{"$f":"IF(J22=0,\"\",J22)","v":""},{"$f":"IF(K22=0,\"\",K22)","v":""}]
[null,null,null,null,null,null,null,null,null,null,null,null,"2023-03-03",null,null,null,null,null,null,null,"","","","","","","","",""]
[null,null,null,null,null,null,null,null,null,null,null,null,"2023-04-04",null,null,null,null,null,null,null,"","","","","","","","",""]
[null,null,null,null,null,null,null,null,null,null,null,null,"2023-05-05",null,null,null,null,null,null,null,"","","","","","","","",""]
[null,null,null,null,null,null,null,null,null,null,null,null,"2023-06-06",null,null,null,null,null,null,null,"","","","","","","","",""]
[null,null,null,null,null,null,null,null,null,null,null,null,"2023-07-07",null,null,null,null,null,null,null,"","","","","","","","",""]
[null,null,null,null,null,null,null,null,null,null,null,null,"2023-08-08",null,null,null,null,null,null,null,"","","","","","","","",""]
[null,null,null,null,null,null,null,null,null,null,null,null,"2023-09-09",null,null,null,null,null,null,null,"","","","","","","","",""]
[null,null,null,null,null,null,null,null,null,null,null,null,"формат ячейки [$-ru-RU-x-genlower]«ДД» ММММ ГГГГ \"г.\"",null,null,null,null,null,null,null,"","","","","","","","",""]
[null,null,null,null,null,null,null,null,null,null,null,null,null,null,null,null,null,null,null,null,"","","","","","","","",""]
[null,null,null,null,null,null,null,null,null,null,null,null,null,null,null,null,null,null,null,null,"","","","","","","","",""]
[null,null,null,null,null,null,null,null,null,null,null,null,null,null,null,null,null,null,null,null,"","","","","","","","",""]
[null,null,null,null,null,null,null,null,null,null,null,null,null,null,null,null,null,null,null,null,"","","","","","","","",""]
[null,null,null,null,null,null,null,null,null,null,null,null,null,null,null,null,null,null,null,null,"","","","","","","","",""]
[null,null,null,null,null,null,null,null,null,null,null,null,"В шаблоне убрать лишнее чтоб не получалось  \"«16» января 2023 г.\"   г.",null,null,null,null,null,null,null,"","","","","","","","",""]
[null,null,null,null,null,null,null,null,null,null,null,null,null,null,null,null,null,null,null,null,"","","","","","","","",""]
[null,null,null,null,null,null,null,null,null,null,null,null,null,null,null,null,null,null,null,null,"","","","","","","","",""]
[null,null,null,null,null,null,null,null,null,null,null,null,null,null,null,null,null,null,null,null,"","","","","","","","",""]
[null,null,null,null,null,null,null,null,null,null,null,null,null,null,null,null,null,null,null,null,"","","","","","","","",""]
[null,null,null,null,null,null,null,null,null,null,null,null,null,null,null,null,null,null,null,null,"","","","","","","","",""]
[null,null,null,null,null,null,null,null,null,null,null,null,null,null,null,null,null,null,null,null,"","","","","","","","",""]
[null,null,null,null,null,null,null,null,null,null,null,null,null,null,null,null,null,null,null,null,"","","","","","","","",""]
[null,null,null,null,null,null,null,null,null,null,null,null,null,null,null,null,null,null,null,null,"","","","","","","","",""]
[null,null,null,null,null,null,null,null,null,null,null,null,null,null,null,null,null,null,null,null,"","","","","","","","",""]
[null,null,null,null,null,null,null,null,null,null,null,null,null,null,null,null,null,null,null,null,"","","","","","","","",""]
[null,null,null,null,null,null,null,null,null,null,null,null,null,null,null,null,null,null,null,null,"","","","","","","","",""]
[null,null,null,null,null,null,null,null,null,null,null,null,null,null,null,null,null,null,null,null,"","","","","","","","",""]
[null,null,null,null,null,null,null,null,null,null,null,null,null,null,null,null,null,null,null,null,"","","","","","","","",""]
[null,null,null,null,null,null,null,null,null,null,null,null,null,null,null,null,null,null,null,null,"","","","","","","","",""]
[null,null,null,null,null,null,null,null,null,null,null,null,null,null,null,null,null,null,null,null,"","","","","","","","",""]
[null,null,null,null,null,null,null,null,null,null,null,null,null,null,null,null,null,null,null,null,"","","","","","","","",""]
[null,null,null,null,null,null,null,null,null,null,null,null,null,null,null,null,null,null,null,null,"","","","","","","","",""]
[null,null,null,null,null,null,null,null,null,null,null,null,null,null,null,null,null,null,null,null,"","","","","","","","",""]
[null,null,null,null,null,null,null,null,null,null,null,null,null,null,null,null,null,null,null,null,"","","","","","","","",""]
[null,null,null,null,null,null,null,null,null,null,null,null,null,null,null,null,null,null,null,null,"","","","","","","","",""]
[null,null,null,null,null,null,null,null,null,null,null,null,null,null,null,null,null,null,null,null,"","","","","","","","",""]
[null,null,null,null,null,null,null,null,null,null,null,null,null,null,null,null,null,null,null,null,"","","","","","","","",""]
[null,null,null,null,null,null,null,null,null,null,null,null,null,null,null,null,null,null,null,null,"","","","","","","","",""]
[null,null,null,null,null,null,null,null,null,null,null,null,null,null,null,null,null,null,null,null,"","","","","","","","",""]
[null,null,null,null,null,null,null,null,null,null,null,null,null,null,null,null,null,null,null,null,"","","","","","","","",""]
[null,null,null,null,null,null,null,null,null,null,null,null,null,null,null,null,null,null,null,null,"","","","","","","","",""]
[null,null,null,null,null,null,null,null,null,null,null,null,null,null,null,null,null,null,null,null,"","","","","","","","",""]
[null,null,null,null,null,null,null,null,null,null,null,null,null,null,null,null,null,null,null,null,"","","","","","","","",""]
[null,null,null,null,null,null,null,null,null,null,null,null,null,null,null,null,null,null,null,null,"","","","","","","","",""]
[null,null,null,null,null,null,null,null,null,null,null,null,null,null,null,null,null,null,null,null,"","","","","","","","",""]
[null,null,null,null,null,null,null,null,null,null,null,null,null,null,null,null,null,null,null,null,"","","","","","","","",""]
[null,null,null,null,null,null,null,null,null,null,null,null,null,null,null,null,null,null,null,null,"","","","","","","","",""]
[null,null,null,null,null,null,null,null,null,null,null,null,null,null,null,null,null,null,null,null,"","","","","","","","",""]
[null,null,null,null,null,null,null,null,null,null,null,null,null,null,null,null,null,null,null,null,"","","","","","","","",""]
[null,null,null,null,null,null,null,null,null,null,null,null,null,null,null,null,null,null,null,null,"","","","","","","","",""]
[null,null,null,null,null,null,null,null,null,null,null,null,null,null,null,null,null,null,null,null,"","","","","","","","",""]
[null,null,null,null,null,null,null,null,null,null,null,null,null,null,null,null,null,null,null,null,"","","","","","","","",""]
[null,null,null,null,null,null,null,null,null,null,null,null,null,null,null,null,null,null,null,null,"","","","","","","","",""]
[null,null,null,null,null,null,null,null,null,null,null,null,null,null,null,null,null,null,null,null,"","","","","","","","",""]
[null,null,null,null,null,null,null,null,null,null,null,null,null,null,null,null,null,null,null,null,"","","","","","","","",""]
[null,null,null,null,null,null,null,null,null,null,null,null,null,null,null,null,null,null,null,null,"","","","","","","","",""]
[null,null,null,null,null,null,null,null,null,null,null,null,null,null,null,null,null,null,null,null,"","","","","","","","",""]
[null,null,null,null,null,null,null,null,null,null,null,null,null,null,null,null,null,null,null,null,"","","","","","","","",""]
[null,null,null,null,null,null,null,null,null,null,null,null,null,null,null,null,null,null,null,null,"","","","","","","","",""]
[null,null,null,null,null,null,null,null,null,null,null,null,null,null,null,null,null,null,null,null,"","","","","","","","",""]
[null,null,null,null,null,null,null,null,null,null,null,null,null,null,null,null,null,null,null,null,"","","","","","","","",""]
[null,null,null,null,null,null,null,null,null,null,null,null,null,null,null,null,null,null,null,null,"","","","","","","","",""]
[null,null,null,null,null,null,null,null,null,null,null,null,null,null,null,null,null,null,null,null,"","","","","","","","",""]
[null,null,null,null,null,null,null,null,null,null,null,null,null,null,null,null,null,null,null,null,"","","","","","","","",""]
[null,null,null,null,null,null,null,null,null,null,null,null,null,null,null,null,null,null,null,null,{"$f":"IF(Q86=0,\"\",Q86)","v":""},{"$f":"IF(Q86=0,\"\",Q86)","v":""},{"$f":"IF(E86=0,\"\",E86)","v":""},{"$f":"IF(F86=0,\"\",F86)","v":""},{"$f":"IF(G86=0,\"\",G86)","v":""},{"$f":"IF(H86=0,\"\",H86)","v":""},{"$f":"IF(I86=0,\"\",I86)","v":""},{"$f":"IF(J86=0,\"\",J86)","v":""},{"$f":"IF(K86=0,\"\",K86)","v":""}]
[null,null,null,null,null,null,null,null,null,null,null,null,null,null,null,null,null,null,null,null,"","","","","","","","",""]
[null,null,null,null,null,null,null,null,null,null,null,null,null,null,null,null,null,null,null,null,"","","","","","","","",""]
[null,null,null,null,null,null,null,null,null,null,null,null,null,null,null,null,null,null,null,null,"","","","","","","","",""]
[null,null,null,null,null,null,null,null,null,null,null,null,null,null,null,null,null,null,null,null,"","","","","","","","",""]
[null,null,null,null,null,null,null,null,null,null,null,null,null,null,null,null,null,null,null,null,"","","","","","","","",""]
[null,null,null,null,null,null,null,null,null,null,null,null,null,null,null,null,null,null,null,null,"","","","","","","","",""]
[null,null,null,null,null,null,null,null,null,null,null,null,null,null,null,null,null,null,null,null,"","","","","","","","",""]
[null,null,null,null,null,null,null,null,null,null,null,null,null,null,null,null,null,null,null,null,"","","","","","","","",""]
[null,null,null,null,null,null,null,null,null,null,null,null,null,null,null,null,null,null,null,null,"","","","","","","","",""]
[null,null,null,null,null,null,null,null,null,null,null,null,null,null,null,null,null,null,null,null,"","","","","","","","",""]
[null,null,null,null,null,null,null,null,null,null,null,null,null,null,null,null,null,null,null,null,"","","","","","","","",""]
[null,null,null,null,null,null,null,null,null,null,null,null,null,null,null,null,null,null,null,null,"","","","","","","","",""]
[null,null,null,null,null,null,null,null,null,null,null,null,null,null,null,null,null,null,null,null,"","","","","","","","",""]
[null,null,null,null,null,null,null,null,null,null,null,null,null,null,null,null,null,null,null,null,"","","","","","","","",""]
[null,null,null,null,null,null,null,null,null,null,null,null,null,null,null,null,null,null,null,null,"","","","","","","","",""]
[null,null,null,null,null,null,null,null,null,null,null,null,null,null,null,null,null,null,null,null,"","","","","","","","",""]
[null,null,null,null,null,null,null,null,null,null,null,null,null,null,null,null,null,null,null,null,"","","","","","","","",""]
[null,null,null,null,null,null,null,null,null,null,null,null,null,null,null,null,null,null,null,null,"","","","","","","","",""]
[null,null,null,null,null,null,null,null,null,null,null,null,null,null,null,null,null,null,null,null,"","","","","","","","",""]
[null,null,null,null,null,null,null,null,null,null,null,null,null,null,null,null,null,null,null,null,"","","","","","","","",""]
[null,null,null,null,null,null,null,null,null,null,null,null,null,null,null,null,null,null,null,null,"","","","","","","","",""]
[null,null,null,null,null,null,null,null,null,null,null,null,null,null,null,null,null,null,null,null,"","","","","","","","",""]
[null,null,null,null,null,null,null,null,null,null,null,null,null,null,null,null,null,null,null,null,"","","","","","","","",""]
[null,null,null,null,null,null,null,null,null,null,null,null,null,null,null,null,null,null,null,null,"","","","","","","","",""]
[null,null,null,null,null,null,null,null,null,null,null,null,null,null,null,null,null,null,null,null,"","","","","","","","",""]
[null,null,null,null,null,null,null,null,null,null,null,null,null,null,null,null,null,null,null,null,"","","","","","","","",""]
[null,null,null,null,null,null,null,null,null,null,null,null,null,null,null,null,null,null,null,null,"","","","","","","","",""]
[null,null,null,null,null,null,null,null,null,null,null,null,null,null,null,null,null,null,null,null,"","","","","","","","",""]
[null,null,null,null,null,null,null,null,null,null,null,null,null,null,null,null,null,null,null,null,"","","","","","","","",""]
[null,null,null,null,null,null,null,null,null,null,null,null,null,null,null,null,null,null,null,null,"","","","","","","","",""]
[null,null,null,null,null,null,null,null,null,null,null,null,null,null,null,null,null,null,null,null,"","","","","","","","",""]
[null,null,null,null,null,null,null,null,null,null,null,null,null,null,null,null,null,null,null,null,"","","","","","","","",""]
[null,null,null,null,null,null,null,null,null,null,null,null,null,null,null,null,null,null,null,null,"","","","","","","","",""]
[null,null,null,null,null,null,null,null,null,null,null,null,null,null,null,null,null,null,null,null,"","","","","","","","",""]
[null,null,null,null,null,null,null,null,null,null,null,null,null,null,null,null,null,null,null,null,"","","","","","","","",""]
[null,null,null,null,null,null,null,null,null,null,null,null,null,null,null,null,null,null,null,null,"","","","","","","","",""]
[null,null,null,null,null,null,null,null,null,null,null,null,null,null,null,null,null,null,null,null,"","","","","","","","",""]
[null,null,null,null,null,null,null,null,null,null,null,null,null,null,null,null,null,null,null,null,"","","","","","","","",""]
[null,null,null,null,null,null,null,null,null,null,null,null,null,null,null,null,null,null,null,null,"","","","","","","","",""]
[null,null,null,null,null,null,null,null,null,null,null,null,null,null,null,null,null,null,null,null,"","","","","","","","",""]
[null,null,null,null,null,null,null,null,null,null,null,null,null,null,null,null,null,null,null,null,"","","","","","","","",""]
[null,null,null,null,null,null,null,null,null,null,null,null,null,null,null,null,null,null,null,null,"","","","","","","","",""]
[null,null,null,null,null,null,null,null,null,null,null,null,null,null,null,null,null,null,null,null,"","","","","","","","",""]
[null,null,null,null,null,null,null,null,null,null,null,null,null,null,null,null,null,null,null,null,"","","","","","","","",""]
[null,null,null,null,null,null,null,null,null,null,null,null,null,null,null,null,null,null,null,null,"","","","","","","","",""]
[null,null,null,null,null,null,null,null,null,null,null,null,null,null,null,null,null,null,null,null,"","","","","","","","",""]
[null,null,null,null,null,null,null,null,null,null,null,null,null,null,null,null,null,null,null,null,"","","","","","","","",""]
[null,null,null,null,null,null,null,null,null,null,null,null,null,null,null,null,null,null,null,null,"","","","","","","","",""]
[null,null,null,null,null,null,null,null,null,null,null,null,null,null,null,null,null,null,null,null,"","","","","","","","",""]
[null,null,null,null,null,null,null,null,null,null,null,null,null,null,null,null,null,null,null,null,"","","","","","","","",""]
[null,null,null,null,null,null,null,null,null,null,null,null,null,null,null,null,null,null,null,null,"","","","","","","","",""]
[null,null,null,null,null,null,null,null,null,null,null,null,null,null,null,null,null,null,null,null,"","","","","","","","",""]
[null,null,null,null,null,null,null,null,null,null,null,null,null,null,null,null,null,null,null,null,"","","","","","","","",""]
[null,null,null,null,null,null,null,null,null,null,null,null,null,null,null,null,null,null,null,null,"","","","","","","","",""]
[null,null,null,null,null,null,null,null,null,null,null,null,null,null,null,null,null,null,null,null,"","","","","","","","",""]
[null,null,null,null,null,null,null,null,null,null,null,null,null,null,null,null,null,null,null,null,"","","","","","","","",""]
[null,null,null,null,null,null,null,null,null,null,null,null,null,null,null,null,null,null,null,null,"","","","","","","","",""]
[null,null,null,null,null,null,null,null,null,null,null,null,null,null,null,null,null,null,null,null,"","","","","","","","",""]
[null,null,null,null,null,null,null,null,null,null,null,null,null,null,null,null,null,null,null,null,"","","","","","","","",""]
[null,null,null,null,null,null,null,null,null,null,null,null,null,null,null,null,null,null,null,null,"","","","","","","","",""]
[null,null,null,null,null,null,null,null,null,null,null,null,null,null,null,null,null,null,null,null,"","","","","","","","",""]
[null,null,null,null,null,null,null,null,null,null,null,null,null,null,null,null,null,null,null,null,"","","","","","","","",""]
[null,null,null,null,null,null,null,null,null,null,null,null,null,null,null,null,null,null,null,null,"","","","","","","","",""]
[null,null,null,null,null,null,null,null,null,null,null,null,null,null,null,null,null,null,null,null,{"$f":"IF(Q150=0,\"\",Q150)","v":""},{"$f":"IF(Q150=0,\"\",Q150)","v":""},{"$f":"IF(E150=0,\"\",E150)","v":""},{"$f":"IF(F150=0,\"\",F150)","v":""},{"$f":"IF(G150=0,\"\",G150)","v":""},{"$f":"IF(H150=0,\"\",H150)","v":""},{"$f":"IF(I150=0,\"\",I150)","v":""},{"$f":"IF(J150=0,\"\",J150)","v":""},{"$f":"IF(K150=0,\"\",K150)","v":""}]
[null,null,null,null,null,null,null,null,null,null,null,null,null,null,null,null,null,null,null,null,"","","","","","","","",""]
[null,null,null,null,null,null,null,null,null,null,null,null,null,null,null,null,null,null,null,null,"","","","","","","","",""]
[null,null,null,null,null,null,null,null,null,null,null,null,null,null,null,null,null,null,null,null,"","","","","","","","",""]
[null,null,null,null,null,null,null,null,null,null,null,null,null,null,null,null,null,null,null,null,"","","","","","","","",""]
[null,null,null,null,null,null,null,null,null,null,null,null,null,null,null,null,null,null,null,null,"","","","","","","","",""]
[null,null,null,null,null,null,null,null,null,null,null,null,null,null,null,null,null,null,null,null,"","","","","","","","",""]
[null,null,null,null,null,null,null,null,null,null,null,null,null,null,null,null,null,null,null,null,"","","","","","","","",""]
[null,null,null,null,null,null,null,null,null,null,null,null,null,null,null,null,null,null,null,null,"","","","","","","","",""]
[null,null,null,null,null,null,null,null,null,null,null,null,null,null,null,null,null,null,null,null,"","","","","","","","",""]
[null,null,null,null,null,null,null,null,null,null,null,null,null,null,null,null,null,null,null,null,"","","","","","","","",""]
[null,null,null,null,null,null,null,null,null,null,null,null,null,null,null,null,null,null,null,null,"","","","","","","","",""]
[null,null,null,null,null,null,null,null,null,null,null,null,null,null,null,null,null,null,null,null,"","","","","","","","",""]
[null,null,null,null,null,null,null,null,null,null,null,null,null,null,null,null,null,null,null,null,"","","","","","","","",""]
[null,null,null,null,null,null,null,null,null,null,null,null,null,null,null,null,null,null,null,null,"","","","","","","","",""]
[null,null,null,null,null,null,null,null,null,null,null,null,null,null,null,null,null,null,null,null,"","","","","","","","",""]
[null,null,null,null,null,null,null,null,null,null,null,null,null,null,null,null,null,null,null,null,"","","","","","","","",""]
[null,null,null,null,null,null,null,null,null,null,null,null,null,null,null,null,null,null,null,null,"","","","","","","","",""]
[null,null,null,null,null,null,null,null,null,null,null,null,null,null,null,null,null,null,null,null,"","","","","","","","",""]
[null,null,null,null,null,null,null,null,null,null,null,null,null,null,null,null,null,null,null,null,"","","","","","","","",""]
[null,null,null,null,null,null,null,null,null,null,null,null,null,null,null,null,null,null,null,null,"","","","","","","","",""]
[null,null,null,null,null,null,null,null,null,null,null,null,null,null,null,null,null,null,null,null,"","","","","","","","",""]
[null,null,null,null,null,null,null,null,null,null,null,null,null,null,null,null,null,null,null,null,"","","","","","","","",""]
[null,null,null,null,null,null,null,null,null,null,null,null,null,null,null,null,null,null,null,null,"","","","","","","","",""]
[null,null,null,null,null,null,null,null,null,null,null,null,null,null,null,null,null,null,null,null,"","","","","","","","",""]
[null,null,null,null,null,null,null,null,null,null,null,null,null,null,null,null,null,null,null,null,"","","","","","","","",""]
[null,null,null,null,null,null,null,null,null,null,null,null,null,null,null,null,null,null,null,null,"","","","","","","","",""]
[null,null,null,null,null,null,null,null,null,null,null,null,null,null,null,null,null,null,null,null,"","","","","","","","",""]
[null,null,null,null,null,null,null,null,null,null,null,null,null,null,null,null,null,null,null,null,"","","","","","","","",""]
[null,null,null,null,null,null,null,null,null,null,null,null,null,null,null,null,null,null,null,null,"","","","","","","","",""]
[null,null,null,null,null,null,null,null,null,null,null,null,null,null,null,null,null,null,null,null,"","","","","","","","",""]
[null,null,null,null,null,null,null,null,null,null,null,null,null,null,null,null,null,null,null,null,"","","","","","","","",""]
[null,null,null,null,null,null,null,null,null,null,null,null,null,null,null,null,null,null,null,null,"","","","","","","","",""]
[null,null,null,null,null,null,null,null,null,null,null,null,null,null,null,null,null,null,null,null,"","","","","","","","",""]
[null,null,null,null,null,null,null,null,null,null,null,null,null,null,null,null,null,null,null,null,"","","","","","","","",""]
[null,null,null,null,null,null,null,null,null,null,null,null,null,null,null,null,null,null,null,null,"","","","","","","","",""]
[null,null,null,null,null,null,null,null,null,null,null,null,null,null,null,null,null,null,null,null,"","","","","","","","",""]
[null,null,null,null,null,null,null,null,null,null,null,null,null,null,null,null,null,null,null,null,"","","","","","","","",""]
[null,null,null,null,null,null,null,null,null,null,null,null,null,null,null,null,null,null,null,null,"","","","","","","","",""]
[null,null,null,null,null,null,null,null,null,null,null,null,null,null,null,null,null,null,null,null,"","","","","","","","",""]
[null,null,null,null,null,null,null,null,null,null,null,null,null,null,null,null,null,null,null,null,"","","","","","","","",""]
[null,null,null,null,null,null,null,null,null,null,null,null,null,null,null,null,null,null,null,null,"","","","","","","","",""]
[null,null,null,null,null,null,null,null,null,null,null,null,null,null,null,null,null,null,null,null,"","","","","","","","",""]
[null,null,null,null,null,null,null,null,null,null,null,null,null,null,null,null,null,null,null,null,"","","","","","","","",""]
[null,null,null,null,null,null,null,null,null,null,null,null,null,null,null,null,null,null,null,null,"","","","","","","","",""]
[null,null,null,null,null,null,null,null,null,null,null,null,null,null,null,null,null,null,null,null,"","","","","","","","",""]
[null,null,null,null,null,null,null,null,null,null,null,null,null,null,null,null,null,null,null,null,"","","","","","","","",""]
[null,null,null,null,null,null,null,null,null,null,null,null,null,null,null,null,null,null,null,null,"","","","","","","","",""]
[null,null,null,null,null,null,null,null,null,null,null,null,null,null,null,null,null,null,null,null,"","","","","","","","",""]
[null,null,null,null,null,null,null,null,null,null,null,null,null,null,null,null,null,null,null,null,"","","","","","","","",""]
[null,null,null,null,null,null,null,null,null,null,null,null,null,null,null,null,null,null,null,null,"","","","","","","","",""]
[null,null,null,null,null,null,null,null,null,null,null,null,null,null,null,null,null,null,null,null,"","","","","","","","",""]
[null,null,null,null,null,null,null,null,null,null,null,null,null,null,null,null,null,null,null,null,"","","","","","","","",""]
[null,null,null,null,null,null,null,null,null,null,null,null,null,null,null,null,null,null,null,null,"","","","","","","","",""]
[null,null,null,null,null,null,null,null,null,null,null,null,null,null,null,null,null,null,null,null,"","","","","","","","",""]
[null,null,null,null,null,null,null,null,null,null,null,null,null,null,null,null,null,null,null,null,"","","","","","","","",""]
[null,null,null,null,null,null,null,null,null,null,null,null,null,null,null,null,null,null,null,null,"","","","","","","","",""]
[null,null,null,null,null,null,null,null,null,null,null,null,null,null,null,null,null,null,null,null,"","","","","","","","",""]
[null,null,null,null,null,null,null,null,null,null,null,null,null,null,null,null,null,null,null,null,"","","","","","","","",""]
[null,null,null,null,null,null,null,null,null,null,null,null,null,null,null,null,null,null,null,null,"","","","","","","","",""]
[null,null,null,null,null,null,null,null,null,null,null,null,null,null,null,null,null,null,null,null,"","","","","","","","",""]
[null,null,null,null,null,null,null,null,null,null,null,null,null,null,null,null,null,null,null,null,"","","","","","","","",""]
[null,null,null,null,null,null,null,null,null,null,null,null,null,null,null,null,null,null,null,null,"","","","","","","","",""]
[null,null,null,null,null,null,null,null,null,null,null,null,null,null,null,null,null,null,null,null,"","","","","","","","",""]
[null,null,null,null,null,null,null,null,null,null,null,null,null,null,null,null,null,null,null,null,{"$f":"IF(Q214=0,\"\",Q214)","v":""},{"$f":"IF(Q214=0,\"\",Q214)","v":""},{"$f":"IF(E214=0,\"\",E214)","v":""},{"$f":"IF(F214=0,\"\",F214)","v":""},{"$f":"IF(G214=0,\"\",G214)","v":""},{"$f":"IF(H214=0,\"\",H214)","v":""},{"$f":"IF(I214=0,\"\",I214)","v":""},{"$f":"IF(J214=0,\"\",J214)","v":""},{"$f":"IF(K214=0,\"\",K214)","v":""}]
[null,null,null,null,null,null,null,null,null,null,null,null,null,null,null,null,null,null,null,null,"","","","","","","","",""]
[null,null,null,null,null,null,null,null,null,null,null,null,null,null,null,null,null,null,null,null,"","","","","","","","",""]
[null,null,null,null,null,null,null,null,null,null,null,null,null,null,null,null,null,null,null,null,"","","","","","","","",""]
[null,null,null,null,null,null,null,null,null,null,null,null,null,null,null,null,null,null,null,null,"","","","","","","","",""]
[null,null,null,null,null,null,null,null,null,null,null,null,null,null,null,null,null,null,null,null,"","","","","","","","",""]
[null,null,null,null,null,null,null,null,null,null,null,null,null,null,null,null,null,null,null,null,"","","","","","","","",""]
[null,null,null,null,null,null,null,null,null,null,null,null,null,null,null,null,null,null,null,null,"","","","","","","","",""]
[null,null,null,null,null,null,null,null,null,null,null,null,null,null,null,null,null,null,null,null,"","","","","","","","",""]
[null,null,null,null,null,null,null,null,null,null,null,null,null,null,null,null,null,null,null,null,"","","","","","","","",""]